bitfinex/quotes_SOLUSD_20251002
["timestamp","ask_amount","ask_price","bid_price","bid_amount"]
[1759364455001,0.7,221.47,221.38,38.06694683]
[1759364455198,31.67647521,221.51,221.41,20.8]
[1759364455199,0.7,221.5,221.41,20.8]
[1759364455518,0.7,221.5,221.42,0.69]
[1759364456202,5.21481341,221.5,221.42,5.20625142]
[1759364457718,16.50149512,221.5,221.42,0.69]
[1759364458021,0.7,221.49,221.41,21.49]
[1759364459902,4.51508036,221.48,221.41,26.00649473]
[1759364460098,0.7,221.47,221.38,37.37696954]
[1759364460707,0.7,221.47,221.39,0.69]
[1759364461711,4.51548812,221.46,221.39,5.20689606]
[1759364463399,4.51485578,221.5,221.39,4.51689606]
[1759364463619,5.21485578,221.5,221.41,4.51650783]
[1759364464222,0.7,221.49,221.41,4.51650783]
[1759364464412,0.7,221.48,221.4,0.69]
[1759364464800,10.87647521,221.47,221.37,5.20713039]
[1759364465004,0.7,221.46,221.37,5.20713039]
[1759364465420,0.7,221.45,221.37,5.20713039]
[1759364465727,4.51589595,221.44,221.37,5.20713039]
[1759364466430,5.21589595,221.44,221.37,5.20713039]
[1759364466634,0.7,221.43,221.34,5.20779498]
[1759364466811,4.51589595,221.44,221.35,33.53]
[1759364467009,4.51589595,221.44,221.36,0.69]
[1759364468618,0.7,221.43,221.36,0.69]
[1759364469527,10.87647521,221.42,221.32,20.8]
[1759364469731,5.79291722,221.41,221.31,0.69]
[1759364469907,0.7,221.41,221.31,0.69]
[1759364470422,4.51671183,221.4,221.31,5.20835604]
[1759364470615,0.7,221.39,221.31,0.69]
[1759364471422,0.7,221.39,221.31,5.20851148]
[1759364471624,0.7,221.39,221.32,0.69]
[1759364472331,5.21711623,221.39,221.32,5.20826737]
[1759364473230,0.7,221.38,221.3,20.8]
[1759364473433,0.7,221.38,221.29,32.84]
[1759364473733,0.7,221.41,221.31,0.69]
[1759364474125,0.7,221.41,221.32,20.8]
[1759364474326,0.7,221.41,221.33,0.69]
[1759364474522,5.21659364,221.41,221.32,20.8]
[1759364474708,5.21659364,221.41,221.29,32.84]
[1759364474709,5.09291722,221.39,221.29,32.84]
[1759364474915,0.7,221.38,221.29,32.84]
[1759364475263,0.7,221.38,221.28,0.69]
[1759364475929,4.51732393,221.37,221.29,4.51888852]
[1759364476114,5.21732393,221.37,221.29,4.51888852]
[1759364476319,0.7,221.36,221.29,4.51888852]
[1759364477552,39.10072282,221.35,221.27,20.8]
[1759364477749,5.09291722,221.28,221.2,0.27754771]
[1759364478035,5.79291722,221.27,221.2,0.27754771]
[1759364478441,44.41647521,221.3,221.21,0.69]
[1759364478612,0.7,221.29,221.2,4.79832552]
[1759364478816,0.7,221.28,221.2,4.79832552]
[1759364479536,5.21936548,221.27,221.2,0.27754771]
[1759364479741,5.21936548,221.27,221.2,4.79827505]
[1759364480148,5.21936548,221.27,221.2,0.27754771]
[1759364480459,5.09291722,221.26,221.2,0.27754771]
[1759364480954,5.80291722,221.26,221.2,0.27754771]
[1759364481452,4.52038694,221.22,221.2,0.27754771]
[1759364481867,16.67939243,221.21,221.2,0.27754771]
[1759364482238,16.96371557,221.21,221.2,0.27754771]
[1759364486036,11.87079835,221.21,221.2,0.27754771]
[1759364486235,16.96371557,221.21,221.2,0.27754771]
[1759364488361,16.96371557,221.21,221.09,4.52302756]
[1759364488362,10.87647521,221.16,221.09,4.52302756]
[1759364488561,32.84,221.15,221.07,4.52327576]
[1759364489066,32.84,221.15,221.05,4.52375293]
[1759364489370,5.09291722,221.13,221.0,13.63529003]
[1759364489557,5.09291722,221.13,221.06,4.62364879]
[1759364489755,5.77291722,221.14,221.02,15.83567097]
[1759364489956,4.52165137,221.16,221.02,15.83567097]
[1759364490176,10.87647521,221.14,221.02,15.83567097]
[1759364490353,15.96939243,221.14,221.03,0.67]
[1759364490673,49.48939243,221.14,221.03,0.67]
[1759364490881,5.09291722,221.13,221.03,0.67]
[1759364491065,44.39647521,221.14,221.03,0.67]
[1759364491264,49.48939243,221.14,221.03,0.67]
[1759364491448,48.80939243,221.14,221.03,0.67]
[1759364491777,32.84,221.14,221.04,36.63423814]
[1759364492084,32.84,221.14,221.05,0.67]
[1759364493076,38.61291722,221.14,221.04,36.63423814]
[1759364493458,5.09291722,221.15,221.05,0.67]
[1759364493779,32.84,221.15,221.05,0.67]
[1759364493982,11.55647521,221.14,221.06,4.52365873]
[1759364494149,16.64939243,221.14,221.06,15.83280556]
[1759364494482,5.77291722,221.14,221.06,15.83280556]
[1759364494769,0.68,221.14,221.06,15.83280556]
[1759364495868,43.71647521,221.16,221.07,0.67]
[1759364496076,43.71647521,221.16,221.08,4.5232495]
[1759364496448,0.68,221.19,221.08,15.83137325]
[1759364496643,10.87647521,221.18,221.08,16.50137325]
[1759364496878,12.95083216,221.18,221.08,16.50137325]
[1759364498367,2.07435695,221.14,221.05,11.3093563]
[1759364498666,0.68,221.13,221.06,4.52345821]
[1759364499649,21.48,221.17,221.07,0.67]
[1759364499844,20.8,221.16,221.07,0.67]
[1759364500044,0.68,221.17,221.07,0.67]
[1759364500943,4.52100004,221.19,221.07,0.67]
[1759364501148,174.39287408,221.2,221.08,20.8]
[1759364501372,2.07435695,221.19,221.09,0.67]
[1759364501552,178.91384281,221.2,221.09,0.67]
[1759364501753,180.98819976,221.2,221.1,15.82994119]
[1759364502876,2.07435695,221.19,221.07,0.28432314]
[1759364503176,2.07435695,221.14,221.06,20.8]
[1759364503485,2.75435695,221.14,221.06,25.3235827]
[1759364503662,2.75435695,221.14,221.06,4.5235827]
[1759364503860,10.87647521,221.16,221.06,4.5235827]
[1759364503861,2.75435695,221.13,221.06,4.5235827]
[1759364504066,0.68,221.13,221.06,4.5235827]
[1759364504454,35.59435695,221.15,221.06,4.5235827]
[1759364504974,40.11627459,221.15,221.06,4.5235827]
[1759364505685,35.59435695,221.15,221.06,15.83272953]
[1759364505863,15.39809992,221.16,221.07,0.67]
[1759364505864,43.71647521,221.16,221.07,0.67]
[1759364506187,48.91809265,221.16,221.07,0.67]
[1759364506553,50.9924496,221.16,221.07,0.67]
[1759364506878,50.9924496,221.16,221.06,11.30914683]
[1759364507056,2.07435695,221.14,221.04,4.52406804]
[1759364507256,0.68,221.13,221.04,4.52406804]
[1759364507471,0.68,221.13,221.05,0.67]
[1759364508277,5.20225326,221.13,221.06,4.52365873]
[1759364508464,0.68,221.12,221.06,4.52365873]
[1759364509076,4.5220143,221.15,221.06,15.83280556]
[1759364509283,0.68,221.15,221.07,0.67]
[1759364509578,33.52,221.18,221.07,0.67]
[1759364509949,7.97287408,221.2,221.11,20.8]
[1759364510151,7.97287408,221.2,221.12,16.49850939]
[1759364510888,7.97287408,221.2,221.13,0.67]
[1759364511087,7.97287408,221.2,221.15,20.8]
[1759364511290,7.97287408,221.2,221.16,0.67]
[1759364511468,8.65287408,221.2,221.15,20.8]
[1759364511675,8.65287408,221.2,221.14,20.8]
[1759364511860,7.97287408,221.2,221.14,20.8]
[1759364512190,7.97287408,221.2,221.15,4.52181777]
[1759364512384,7.97287408,221.2,221.15,16.49636219]
[1759364512589,0.1358337,221.2,221.18,20.8]
[1759364512774,0.1358337,221.2,221.19,0.67]
[1759364513976,0.1358337,221.2,221.19,5.19100004]
[1759364514180,0.1358337,221.2,221.19,5.47532318]
[1759364517307,1e-08,221.2,221.19,5.47532318]
[1759364517478,1e-08,221.2,221.19,16.35179839]
[1759364521198,0.69,221.31,221.22,20.8]
[1759364521397,0.69,221.31,221.24,0.28432314]
[1759364521595,0.69,221.31,221.26,20.8]
[1759364521903,7.51352578,221.28,221.19,15.82350015]
[1759364522089,7.51352578,221.25,221.16,48.62564658]
[1759364522396,7.51352578,221.25,221.19,20.8]
[1759364522397,0.69,221.24,221.19,20.8]
[1759364522599,4.51931645,221.28,221.16,37.32161331]
[1759364522600,0.69,221.23,221.16,37.32161331]
[1759364522799,0.69,221.22,221.16,37.32161331]
[1759364523104,0.69,221.21,221.16,37.32161331]
[1759364523398,0.69,221.2,221.16,37.32161331]
[1759364523586,0.69,221.19,221.16,32.8]
[1759364524311,0.69,221.19,221.16,37.3216087]
[1759364524905,4.52022658,221.23,221.16,32.8]
[1759364525096,0.69,221.19,221.16,32.8]
[1759364525423,0.69,221.18,221.16,4.52160958]
[1759364525811,0.69,221.22,221.16,4.52160958]
[1759364526111,0.69,221.21,221.15,4.52181777]
[1759364526316,0.69,221.2,221.15,4.52181777]
[1759364526513,0.69,221.19,221.15,4.52181777]
[1759364526689,12.03371982,221.23,221.15,4.52181777]
[1759364526690,0.69,221.18,221.15,4.52181777]
[1759364527200,0.69,221.17,221.15,4.52181777]
[1759364528023,0.69,221.16,221.1,11.30679002]
[1759364528316,0.69,221.16,221.11,32.8]
[1759364528694,0.69,221.15,221.11,32.8]
[1759364528895,10.87647521,221.24,221.11,32.8]
[1759364528896,0.69,221.14,221.11,32.8]
[1759364530328,0.69,221.14,221.12,4.52243125]
[1759364530487,0.69,221.13,221.11,32.8]
[1759364530691,0.69,221.12,221.08,4.52324702]
[1759364530890,0.69,221.11,221.08,4.52324702]
[1759364531109,0.69,221.15,221.08,4.52324702]
[1759364531391,0.69,221.14,221.08,4.52324702]
[1759364531699,0.69,221.13,221.08,4.52324702]
[1759364531901,0.69,221.12,221.08,4.52324702]
[1759364532103,0.69,221.12,221.06,15.83248009]
[1759364532301,0.69,221.15,221.06,16.49248009]
[1759364532498,0.69,221.14,221.06,16.49248009]
[1759364532698,0.69,221.13,221.06,15.83248009]
[1759364534706,0.69,221.13,221.06,15.33248009]
[1759364535623,7.87289129,221.32,221.17,20.8]
[1759364535798,7.87289129,221.32,221.14,30.87647521]
[1759364535799,0.69,221.31,221.22,0.28432314]
[1759364536006,7.87289129,221.32,221.26,20.8]
[1759364536327,1e-08,221.32,221.3,20.8]
[1759364536490,0.69,221.35,221.3,20.8]
[1759364536697,0.69,221.34,221.29,20.8]
[1759364537016,0.69,221.33,221.3,4.51875282]
[1759364537216,0.69,221.37,221.3,15.81563488]
[1759364537399,0.69,221.4,221.3,16.47563488]
[1759364537709,0.69,221.4,221.3,49.27563488]
[1759364537904,7.79017376,221.41,221.3,49.27563488]
[1759364537905,7.79017376,221.41,221.33,20.8]
[1759364538115,7.79017376,221.41,221.34,32.8]
[1759364538907,7.79017376,221.41,221.35,15.81206233]
[1759364539128,7.79017376,221.41,221.38,20.8]
[1759364539329,0.2,221.43,221.39,32.78]
[1759364539504,0.2,221.43,221.39,33.44]
[1759364539830,0.2,221.43,221.39,32.78]
[1759364540405,0.2,221.43,221.42,20.8]
[1759364540609,0.69,221.47,221.42,20.8]
[1759364540910,0.69,221.47,221.44,4.51589595]
[1759364541828,0.69,221.46,221.42,4.51614834]
[1759364542006,0.69,221.45,221.42,4.51614834]
[1759364544120,0.72,221.48,221.42,15.80690798]
[1759364544328,21.52,221.51,221.42,15.80690798]
[1759364544532,0.72,221.51,221.42,16.50690798]
[1759364544729,10.87647521,221.59,221.44,20.8]
[1759364545041,10.87647521,221.57,221.45,32.76]
[1759364545236,0.72,221.56,221.45,32.76]
[1759364545419,10.87647521,221.54,221.45,32.76]
[1759364545626,0.72,221.53,221.46,4.51548812]
[1759364546447,0.72,221.53,221.46,15.80420843]
[1759364546649,0.72,221.53,221.46,4.51548812]
[1759364547652,0.72,221.53,221.46,15.80420843]
[1759364548726,0.28432314,221.56,221.46,4.51548812]
[1759364548926,0.28432314,221.53,221.42,37.27618054]
[1759364549231,11.59647521,221.52,221.42,37.27618054]
[1759364549433,0.72,221.51,221.42,37.27618054]
[1759364549655,0.72,221.5,221.42,37.27618054]
[1759364550133,0.72,221.49,221.42,37.27618054]
[1759364550327,0.72,221.52,221.43,0.7]
[1759364550634,0.72,221.55,221.45,20.8]
[1759364550843,0.72,221.55,221.46,33.46]
[1759364551725,32.39647521,221.58,221.47,0.7]
[1759364551957,0.72,221.58,221.49,20.8]
[1759364552131,0.72,221.58,221.5,49.24135439]
[1759364554640,0.2,221.6,221.5,49.24135439]
[1759364555034,0.2,221.6,221.51,0.7]
[1759364555241,0.2,221.6,221.53,20.8]
[1759364555437,0.2,221.6,221.54,33.44]
[1759364556240,0.2,221.6,221.56,15.79707528]
[1759364556643,0.2,221.6,221.56,16.49707528]
[1759364556851,0.2,221.6,221.56,15.79707528]
[1759364557048,0.72,221.59,221.54,37.25366371]
[1759364557348,0.2,221.6,221.54,32.74]
[1759364557550,0.2,221.6,221.5,32.08650229]
[1759364557551,0.72,221.58,221.5,32.74]
[1759364558228,0.72,221.58,221.51,4.51446887]
[1759364558428,0.2,221.6,221.52,0.7]
[1759364558628,0.2,221.6,221.52,0.98432314]
[1759364558833,0.2,221.6,221.54,20.8]
[1759364559138,0.2,221.6,221.55,32.74]
[1759364559446,0.2,221.6,221.55,33.44]
[1759364559631,0.2,221.6,221.55,32.74]
[1759364560052,0.2,221.6,221.56,0.7]
[1759364560759,0.2,221.6,221.57,5.21324637]
[1759364560955,0.2,221.6,221.57,16.49636231]
[1759364562732,0.2,221.6,221.55,32.74]
[1759364562733,0.72,221.59,221.49,4.51478842]
[1759364562933,11.59647521,221.58,221.49,4.51478842]
[1759364563743,0.72,221.57,221.48,0.7]
[1759364563963,0.72,221.57,221.48,5.21508008]
[1759364564937,10.87647521,221.58,221.45,32.72]
[1759364564938,0.72,221.56,221.46,4.51531315]
[1759364565142,0.72,221.55,221.46,4.51531315]
[1759364565417,0.72,221.55,221.45,37.23569121]
[1759364566045,0.72,221.55,221.45,48.52492128]
[1759364566461,0.72,221.55,221.46,0.7]
[1759364566859,0.72,221.55,221.47,4.51528423]
[1759364574479,0.72,221.55,221.48,0.71]
[1759364575688,0.72,221.55,221.49,4.51487651]
[1759364578595,0.72,221.55,221.48,0.71]
[1759364578596,10.87647521,221.53,221.46,5.2254496]
[1759364578778,0.7,221.52,221.46,4.5154496]
[1759364581998,0.7,221.51,221.41,54.23]
[1759364582301,0.7,221.51,221.42,0.71]
[1759364582795,10.87647521,221.49,221.42,4.51630385]
[1759364582970,10.87647521,221.47,221.41,4.516499]
[1759364583870,11.57647521,221.52,221.42,0.71]
[1759364584066,34.70760625,221.51,221.42,0.71]
[1759364584294,32.37647521,221.55,221.42,21.51]
[1759364584487,10.87647521,221.53,221.43,0.71]
[1759364584686,3.03146611,221.52,221.44,32.7]
[1759364584892,3.03146611,221.51,221.45,0.71]
[1759364585071,10.87647521,221.54,221.45,0.71]
[1759364585273,3.03137269,221.53,221.45,0.71]
[1759364585498,10.87647521,221.56,221.45,0.71]
[1759364585803,3.03161136,221.55,221.47,20.8]
[1759364586006,10.87647521,221.56,221.48,16.51278128]
[1759364586308,3.03148662,221.55,221.48,16.51278128]
[1759364586473,10.87647521,221.56,221.48,16.51278128]
[1759364586674,3.03185625,221.55,221.48,16.51278128]
[1759364586897,10.87647521,221.56,221.48,16.51278128]
[1759364587090,3.03185612,221.55,221.48,16.51278128]
[1759364587296,10.87647521,221.56,221.48,16.51278128]
[1759364587497,10.87647521,221.54,221.48,5.22508036]
[1759364587698,11.57647521,221.54,221.48,4.51508036]
[1759364587976,10.87647521,221.54,221.49,0.71]
[1759364588400,10.87647521,221.56,221.5,0.71]
[1759364589482,10.87647521,221.56,221.51,4.51446887]
[1759364589678,0.7,221.55,221.51,4.51446887]
[1759364590577,0.7,221.54,221.45,11.99890079]
[1759364590897,0.7,221.54,221.46,32.7]
[1759364591094,0.7,221.53,221.46,32.7]
[1759364591587,0.7,221.53,221.45,11.99890079]
[1759364591588,0.7,221.52,221.41,0.71]
[1759364592087,11.57647521,221.52,221.41,0.71]
[1759364593903,11.57647521,221.52,221.42,4.51630385]
[1759364594108,0.7,221.51,221.42,4.51630385]
[1759364594413,0.7,221.51,221.42,16.51706349]
[1759364594614,0.7,221.51,221.43,0.71]
[1759364594974,0.7,221.51,221.42,16.51706349]
[1759364595182,0.7,221.51,221.42,49.21706349]
[1759364596177,0.7,221.51,221.43,0.71]
[1759364598207,10.87647521,221.5,221.44,4.51589595]
[1759364598409,0.7,221.49,221.44,4.51589595]
[1759364598586,0.7,221.48,221.42,37.21619619]
[1759364598783,0.7,221.47,221.37,14.41376892]
[1759364598986,10.87647521,221.48,221.37,0.71]
[1759364598987,10.87647521,221.45,221.37,0.71]
[1759364599197,10.87647521,221.45,221.37,5.22719121]
[1759364599510,0.7,221.44,221.37,0.71]
[1759364599687,0.7,221.44,221.37,16.52057424]
[1759364599893,0.7,221.47,221.38,0.71]
[1759364600501,0.7,221.47,221.39,15.80920546]
[1759364600906,10.87647521,221.48,221.4,0.71]
[1759364601102,8.41185965,221.49,221.4,0.71]
[1759364601311,7.75185965,221.49,221.41,32.7]
[1759364601518,7.75185965,221.49,221.42,0.71]
[1759364602316,7.75185965,221.49,221.39,36.60920546]
[1759364602317,11.53647521,221.48,221.39,36.60920546]
[1759364602516,0.66,221.47,221.39,36.60920546]
[1759364604209,0.66,221.47,221.39,69.30920546]
[1759364604409,0.69,221.46,221.39,69.30920546]
[1759364605822,0.69,221.46,221.4,32.7]
[1759364606026,8.44185965,221.49,221.4,33.4]
[1759364606336,8.44185965,221.49,221.41,0.7]
[1759364606625,8.44185965,221.49,221.42,4.51630385]
[1759364607516,8.44185965,221.49,221.42,15.80706349]
[1759364607718,8.44185965,221.49,221.42,16.50706349]
[1759364607719,7.75185965,221.49,221.42,16.50706349]
[1759364609232,7.75185965,221.49,221.43,0.7]
[1759364610463,7.75185965,221.49,221.44,4.51589595]
[1759364610669,7.75185965,221.49,221.45,32.68]
[1759364610861,0.69,221.48,221.45,32.68]
[1759364611362,7.75185965,221.49,221.44,4.51589595]
[1759364611562,7.75185965,221.49,221.44,16.50563583]
[1759364611966,7.75185965,221.49,221.44,15.80563583]
[1759364612267,7.75185965,221.49,221.44,5.21589595]
[1759364612467,8.44185965,221.49,221.45,32.68]
[1759364612674,8.44185965,221.49,221.46,4.51548812]
[1759364613455,7.75185965,221.49,221.46,4.51548812]
[1759364614475,7.75185965,221.49,221.46,15.80420843]
[1759364615045,0.69,221.48,221.46,32.68]
[1759364615245,0.69,221.48,221.44,4.51573712]
[1759364615444,7.75185965,221.49,221.37,0.14216157]
[1759364615656,0.69,221.47,221.38,37.89711988]
[1759364615879,0.69,221.46,221.38,5.21711988]
[1759364616581,0.69,221.46,221.38,16.50991959]
[1759364617280,0.69,221.45,221.39,32.68]
[1759364617483,0.69,221.44,221.29,16.42044919]
[1759364617650,0.69,221.44,221.27,22.59659235]
[1759364617651,11.56647521,221.43,221.32,0.7]
[1759364617852,11.56647521,221.43,221.33,32.68]
[1759364618068,0.69,221.42,221.33,32.68]
[1759364618384,10.87647521,221.43,221.33,32.68]
[1759364618554,0.69,221.41,221.34,4.5179362]
[1759364619201,0.69,221.4,221.34,32.68]
[1759364619955,10.87647521,221.42,221.34,33.38]
[1759364620573,0.69,221.41,221.35,4.51773209]
[1759364620987,10.87647521,221.42,221.35,15.81206233]
[1759364621184,10.87647521,221.42,221.35,16.51206233]
[1759364621362,11.56647521,221.42,221.35,16.51206233]
[1759364621889,0.69,221.42,221.35,16.51206233]
[1759364622781,10.87647521,221.45,221.36,0.7]
[1759364622985,0.69,221.46,221.36,0.7]
[1759364624586,10.87647521,221.48,221.38,20.8]
[1759364624754,10.87647521,221.48,221.39,49.18920546]
[1759364624954,10.87647521,221.48,221.4,0.7]
[1759364626657,11.56647521,221.48,221.39,15.80920546]
[1759364626858,0.69,221.47,221.39,15.80920546]
[1759364627059,0.69,221.47,221.4,32.68]
[1759364627575,5.78484452,221.47,221.4,32.68]
[1759364627759,0.69,221.47,221.4,32.68]
[1759364628259,0.69,221.46,221.4,32.68]
[1759364628670,0.69,221.46,221.39,15.80920546]
[1759364628870,5.78484452,221.46,221.4,32.66]
[1759364629163,5.78484452,221.46,221.41,4.51650783]
[1759364629569,0.69,221.45,221.41,4.51650783]
[1759364630000,5.09484452,221.46,221.38,4.51702821]
[1759364630299,5.78484452,221.44,221.38,37.17702821]
[1759364630904,0.69,221.43,221.37,4.5173239]
[1759364631068,5.09484452,221.44,221.37,4.5173239]
[1759364631069,0.69,221.42,221.37,4.5173239]
[1759364631262,0.69,221.41,221.37,4.5173239]
[1759364631765,0.69,221.4,221.37,4.5173239]
[1759364631966,10.87647521,221.43,221.37,4.5173239]
[1759364632189,0.69,221.43,221.37,4.5173239]
[1759364632372,0.69,221.42,221.37,4.5173239]
[1759364632774,0.69,221.41,221.37,4.5173239]
[1759364633010,0.69,221.4,221.37,4.5173239]
[1759364633292,0.69,221.4,221.36,4.517528]
[1759364633466,0.69,221.46,221.37,0.7]
[1759364634678,0.69,221.46,221.38,32.66]
[1759364634880,0.69,221.46,221.39,0.67]
[1759364635264,0.69,221.46,221.4,4.51671183]
[1759364635790,10.87647521,221.48,221.4,16.47849141]
[1759364636182,11.59647521,221.48,221.4,16.47849141]
[1759364639607,0.72,221.48,221.4,15.80849141]
[1759364639810,7.75185965,221.49,221.43,20.8]
[1759364640002,7.75185965,221.49,221.44,33.33]
[1759364640307,7.75185965,221.49,221.45,0.67]
[1759364640535,7.75185965,221.49,221.46,0.67]
[1759364640821,7.75185965,221.49,221.44,32.66]
[1759364640993,7.75185965,221.49,221.45,0.67]
[1759364641705,7.75185965,221.49,221.46,4.51548812]
[1759364643124,0.2,221.6,221.47,0.67]
[1759364643298,10.87647521,221.56,221.47,0.67]
[1759364643493,11.59647521,221.56,221.47,0.67]
[1759364644108,11.59647521,221.56,221.49,20.8]
[1759364644109,0.72,221.56,221.49,20.8]
[1759364644420,0.72,221.56,221.5,33.31]
[1759364644811,0.72,221.56,221.5,32.64]
[1759364645016,0.72,221.56,221.51,4.51446887]
[1759364645316,0.72,221.56,221.51,15.80064105]
[1759364646027,0.72,221.56,221.51,4.51446887]
[1759364646191,11.07647521,221.6,221.51,15.80064105]
[1759364646391,0.72,221.58,221.51,5.18446887]
[1759364646615,0.72,221.58,221.51,4.51446887]
[1759364646804,0.72,221.58,221.51,5.18446887]
[1759364647127,0.72,221.58,221.53,4.5140613]
[1759364647421,0.92,221.6,221.53,15.79921455]
[1759364648404,0.2,221.6,221.54,0.67]
[1759364648800,0.2,221.6,221.56,20.8]
[1759364649003,0.2,221.6,221.57,33.31]
[1759364649228,0.2,221.6,221.58,4.51304269]
[1759364649428,0.2,221.6,221.58,5.18304269]
[1759364650342,0.2,221.6,221.59,0.67]
[1759364650513,0.2,221.62,221.59,0.67]
[1759364651438,0.2,221.62,221.6,4.51263537]
[1759364651734,0.2,221.62,221.6,5.18263537]
[1759364653039,0.2,221.62,221.61,32.62]
[1759364653249,0.2,221.62,221.61,37.80243174]
[1759364654511,0.2,221.62,221.61,37.13243174]
[1759364655605,0.2,221.62,221.61,37.80243174]
[1759364656611,0.2,221.62,221.61,37.13243174]
[1759364656816,0.2,221.62,221.61,37.80243174]
[1759364657437,0.2,221.62,221.61,37.78243174]
[1759364657623,0.2,221.62,221.61,37.11243174]
[1759364658636,0.2,221.62,221.61,4.51243174]
[1759364659034,0.92,221.62,221.61,4.51243174]
[1759364659358,0.2,221.62,221.61,37.11243174]
[1759364659853,0.2,221.62,221.61,32.6]
[1759364660049,0.92,221.62,221.61,32.6]
[1759364660946,0.2,221.62,221.61,32.6]
[1759364661146,0.2,221.62,221.61,54.06]
[1759364661959,0.2,221.62,221.61,53.4]
[1759364662142,0.2,221.62,221.61,58.57243174]
[1759364662325,0.2,221.67,221.61,69.85351111]
[1759364662530,0.2,221.67,221.62,0.66]
[1759364662727,0.2,221.67,221.63,0.66]
[1759364662947,0.2,221.67,221.64,32.6]
[1759364663247,0.68,221.66,221.64,32.6]
[1759364663422,0.68,221.65,221.61,36.59351111]
[1759364663624,0.68,221.65,221.62,32.6]
[1759364664246,0.2,221.67,221.63,4.51202454]
[1759364664548,0.86,221.67,221.63,15.7920859]
[1759364665050,0.86,221.67,221.64,32.58]
[1759364666060,0.2,221.67,221.64,32.58]
[1759364666240,0.2,221.67,221.64,37.09173419]
[1759364666448,0.86,221.67,221.64,37.09173419]
[1759364666649,0.86,221.67,221.64,4.51173419]
[1759364666957,0.66,221.66,221.62,4.5121132]
[1759364667132,0.66,221.65,221.62,4.5121132]
[1759364667334,0.66,221.64,221.62,37.0921132]
[1759364668739,0.86,221.67,221.62,37.0921132]
[1759364669148,0.2,221.67,221.63,0.69]
[1759364669355,0.2,221.67,221.64,0.69]
[1759364669549,0.2,221.67,221.65,32.58]
[1759364670643,0.66,221.66,221.62,15.79268354]
[1759364670958,0.66,221.65,221.63,32.58]
[1759364671648,0.86,221.67,221.63,32.58]
[1759364671848,0.66,221.66,221.63,32.58]
[1759364672066,0.2,221.67,221.63,32.58]
[1759364672279,0.2,221.67,221.64,0.69]
[1759364672980,0.2,221.67,221.65,4.51161741]
[1759364673170,0.2,221.67,221.66,32.56]
[1759364673535,0.2,221.67,221.65,32.56]
[1759364674135,0.66,221.66,221.62,4.51205791]
[1759364674340,0.66,221.65,221.62,37.07205791]
[1759364675346,0.2,221.67,221.62,32.56]
[1759364675647,0.66,221.66,221.62,32.56]
[1759364675837,0.2,221.67,221.63,0.69]
[1759364676059,0.2,221.67,221.64,0.69]
[1759364676241,0.2,221.67,221.65,32.56]
[1759364677058,0.2,221.67,221.62,16.48276198]
[1759364677369,0.2,221.67,221.63,33.25]
[1759364677538,0.2,221.67,221.64,4.51182097]
[1759364678246,0.2,221.67,221.64,15.79137339]
[1759364678445,0.2,221.67,221.64,16.48137339]
[1759364679261,0.2,221.67,221.65,0.69]
[1759364679468,0.2,221.67,221.66,37.76141387]
[1759364680160,0.2,221.71,221.66,49.03994856]
[1759364680343,0.2,221.71,221.67,0.69]
[1759364680541,0.2,221.71,221.69,20.8]
[1759364680775,0.2,221.71,221.7,32.56]
[1759364680952,0.2,221.71,221.7,33.25]
[1759364681150,0.2,221.71,221.7,0.69]